[Event "*** Titled Tuesday 3|2 Blitz"]
[Site "Chess.com"]
[Date "2016.10.04"]
[Round "1"]
[White "FearNoEvil12"]
[Black "Kouzari"]
[Result "0-1"]
[WhiteElo "2036"]
[BlackElo "2456"]
[TimeControl "180+2"]
[EndTime "17:08:05 PDT"]
[Termination "Kouzari won by resignation"]

1. e4 {[%clk 0:03:00]} 1... c5 {[%clk 0:03:01]} 2. Nc3 {[%clk 0:02:59.9]} 2...
e6 {[%clk 0:03:02.1]} 3. f4 {[%clk 0:03:01.2]} 3... a6 {[%clk 0:03:02.9]} 4. a4
{[%clk 0:03:00.3]} 4... b6 {[%clk 0:03:00.5]} 5. Nf3 {[%clk 0:03:01.6]} 5... Bb7
{[%clk 0:03:02]} 6. d3 {[%clk 0:03:03.2]} 6... Be7 {[%clk 0:03:03.3]} 7. Qe2
{[%clk 0:03:04.7]} 7... d5 {[%clk 0:03:04.9]} 8. g3 {[%clk 0:03:05.1]} 8... Nf6
{[%clk 0:03:02]} 9. e5 {[%clk 0:03:04]} 9... Nfd7 {[%clk 0:03:00.2]} 10. Bg2
{[%clk 0:03:05.5]} 10... d4 {[%clk 0:02:59.2]} 11. Ne4 {[%clk 0:03:05.6]} 11...
Qc7 {[%clk 0:02:57.8]} 12. O-O {[%clk 0:02:58.5]} 12... Nc6 {[%clk 0:02:58.6]}
13. Bd2 {[%clk 0:02:57.3]} 13... O-O {[%clk 0:02:58.4]} 14. g4 {[%clk
0:02:54.9]} 14... h6 {[%clk 0:02:51.2]} 15. h4 {[%clk 0:02:54.7]} 15... f5
{[%clk 0:02:49.6]} 16. gxf5 {[%clk 0:02:48.8]} 16... Rxf5 {[%clk 0:02:49]} 17.
Ng3 {[%clk 0:02:50]} 17... Rff8 {[%clk 0:02:42.1]} 18. Kf2 {[%clk 0:02:49.3]}
18... Ndxe5 {[%clk 0:02:26.5]} 19. fxe5 {[%clk 0:02:45.1]} 19... Bxh4 {[%clk
0:02:26.6]} 20. Rh1 {[%clk 0:02:40.1]} 20... Nxe5 {[%clk 0:02:13.4]} 21. Rxh4
{[%clk 0:02:32.7]} 21... Bxf3 {[%clk 0:02:14.2]} 22. Bxf3 {[%clk 0:02:30]} 22...
Rxf3+ {[%clk 0:02:07.8]} 23. Kg2 {[%clk 0:02:28.8]} 23... Raf8 {[%clk
0:01:33.9]} 24. Re1 {[%clk 0:02:24.4]} 24... Qc6 {[%clk 0:00:58.7]} 25. Ne4
{[%clk 0:02:18.7]} 25... c4 {[%clk 0:00:48.8]} 26. Rh3 {[%clk 0:02:10.6]} 26...
cxd3 {[%clk 0:00:48.7]} 27. cxd3 {[%clk 0:02:10.6]} 27... Rxh3 {[%clk
0:00:47.3]} 28. Kxh3 {[%clk 0:02:11.4]} 28... Rf3+ {[%clk 0:00:48.3]} 29. Kg2
{[%clk 0:02:04.8]} 29... Rxd3 {[%clk 0:00:48.1]} 30. Bf4 {[%clk 0:02:02.5]}
30... Ng6 {[%clk 0:00:47.9]} 31. Bg3 {[%clk 0:01:55.5]} 31... Re3 {[%clk
0:00:45.9]} 32. Qg4 {[%clk 0:01:51.9]} 32... Rxe1 {[%clk 0:00:41.5]} 33. Bxe1
{[%clk 0:01:52.6]} 33... Ne5 {[%clk 0:00:40.5]} 34. Qh4 {[%clk 0:01:46.9]} 34...
Nd3 {[%clk 0:00:39.2]} 35. Bg3 {[%clk 0:01:45.7]} 35... Nc5 {[%clk 0:00:39.9]}
36. Kf3 {[%clk 0:01:45]} 36... g5 {[%clk 0:00:33]} 37. Qg4 {[%clk 0:01:44.1]}
37... Kf7 {[%clk 0:00:31.1]} 38. Bf2 {[%clk 0:01:35.4]} 38... e5 {[%clk
0:00:18.1]} 39. Qf5+ {[%clk 0:01:31.3]} 39... Kg8 {[%clk 0:00:19.3]} 40. Bg3
{[%clk 0:01:28.7]} 40... Nxe4 {[%clk 0:00:20.3]} 41. Qxe4 {[%clk 0:01:29]} 41...
g4+ {[%clk 0:00:19.6]} 0-1

[Event "*** Titled Tuesday 3|2 Blitz"]
[Site "Chess.com"]
[Date "2016.10.04"]
[Round "1"]
[White "MattyDPerrine"]
[Black "Newlight1"]
[Result "0-1"]
[WhiteElo "2224"]
[BlackElo "2513"]
[TimeControl "180+2"]
[EndTime "17:08:10 PDT"]
[Termination "Newlight1 won by resignation"]

1. d4 {[%clk 0:02:55.4]} 1... Nf6 {[%clk 0:02:58.9]} 2. Nf3 {[%clk 0:02:56.2]}
2... c5 {[%clk 0:02:58.3]} 3. g3 {[%clk 0:02:24]} 3... cxd4 {[%clk 0:02:54.6]}
4. Nxd4 {[%clk 0:02:25.9]} 4... e5 {[%clk 0:02:49.6]} 5. Nb3 {[%clk 0:02:14.5]}
5... d5 {[%clk 0:02:32.8]} 6. Bg2 {[%clk 0:02:11.2]} 6... Nc6 {[%clk 0:02:27]}
7. Nc3 {[%clk 0:01:48.3]} 7... Be6 {[%clk 0:02:24.9]} 8. Bg5 {[%clk 0:01:48.8]}
8... d4 {[%clk 0:02:18.8]} 9. Ne4 {[%clk 0:01:46.4]} 9... Be7 {[%clk 0:02:14]}
10. Bxf6 {[%clk 0:01:42.3]} 10... gxf6 {[%clk 0:02:09.8]} 11. c3 {[%clk
0:01:30.4]} 11... Qb6 {[%clk 0:00:40.1]} 12. O-O {[%clk 0:01:13.2]} 12... f5
{[%clk 0:00:39.6]} 13. Ned2 {[%clk 0:01:11]} 13... O-O {[%clk 0:00:36.3]} 14.
cxd4 {[%clk 0:01:00.4]} 14... Nxd4 {[%clk 0:00:37.5]} 15. Nxd4 {[%clk 0:01:01]}
15... Qxd4 {[%clk 0:00:39.4]} 16. Nf3 {[%clk 0:00:57.9]} 16... Qxd1 {[%clk
0:00:40.5]} 17. Rfxd1 {[%clk 0:00:59]} 17... Bf6 {[%clk 0:00:37]} 18. Rd6 {[%clk
0:00:44.3]} 18... Rfd8 {[%clk 0:00:33.9]} 19. Rad1 {[%clk 0:00:43.4]} 19... Rxd6
{[%clk 0:00:33.5]} 20. Rxd6 {[%clk 0:00:44.2]} 20... e4 {[%clk 0:00:34.6]} 21.
Nh4 {[%clk 0:00:28.2]} 21... Rc8 {[%clk 0:00:32.6]} 22. Bh3 {[%clk 0:00:25.3]}
22... Rc1+ {[%clk 0:00:31.8]} 23. Kg2 {[%clk 0:00:26.5]} 23... Bxh4 {[%clk
0:00:32.5]} 24. gxh4 {[%clk 0:00:28.4]} 24... Rc2 {[%clk 0:00:28.9]} 25. h5
{[%clk 0:00:21.2]} 25... Rxe2 {[%clk 0:00:28.7]} 26. h6 {[%clk 0:00:21.5]} 26...
Kf8 {[%clk 0:00:27.3]} 27. Rd8+ {[%clk 0:00:22.8]} 27... Ke7 {[%clk 0:00:28.3]}
28. Rh8 {[%clk 0:00:24.7]} 28... e3 {[%clk 0:00:28.5]} 29. Kf3 {[%clk
0:00:15.4]} 29... Rxf2+ {[%clk 0:00:27]} 30. Kxe3 {[%clk 0:00:16.9]} 30... Rxb2
{[%clk 0:00:27.7]} 31. Kf4 {[%clk 0:00:13.3]} 31... Rxh2 {[%clk 0:00:26.9]} 32.
Kg3 {[%clk 0:00:14.7]} 32... Rxa2 {[%clk 0:00:26]} 33. Rxh7 {[%clk 0:00:16.1]}
33... f4+ {[%clk 0:00:24]} 34. Kxf4 {[%clk 0:00:06]} 34... Bxh3 {[%clk
0:00:24.9]} 35. Rxf7+ {[%clk 0:00:04.4]} 35... Kxf7 {[%clk 0:00:24.9]} 0-1

[Event "*** Titled Tuesday 3|2 Blitz"]
[Site "Chess.com"]
[Date "2016.10.04"]
[Round "1"]
[White "GGuseinov"]
[Black "AdrianaNikolova"]
[Result "1-0"]
[WhiteElo "2548"]
[BlackElo "2251"]
[TimeControl "180+2"]
[EndTime "17:08:16 PDT"]
[Termination "GGuseinov won by checkmate"]

1. e4 {[%clk 0:02:57.7]} 1... c5 {[%clk 0:02:54.9]} 2. Nf3 {[%clk 0:02:57]} 2...
Nc6 {[%clk 0:02:55.4]} 3. Nc3 {[%clk 0:02:57.5]} 3... d6 {[%clk 0:02:54.4]} 4.
d4 {[%clk 0:02:57.6]} 4... cxd4 {[%clk 0:02:56.3]} 5. Nxd4 {[%clk 0:02:59.3]}
5... Nf6 {[%clk 0:02:57.3]} 6. Bg5 {[%clk 0:02:59.8]} 6... e6 {[%clk 0:02:56.9]}
7. Qd2 {[%clk 0:03:00.6]} 7... a6 {[%clk 0:02:58.3]} 8. O-O-O {[%clk 0:03:01.3]}
8... Bd7 {[%clk 0:02:56.8]} 9. f4 {[%clk 0:03:00]} 9... h6 {[%clk 0:02:58.1]}
10. Bh4 {[%clk 0:03:00.3]} 10... Rc8 {[%clk 0:02:38.4]} 11. Nf3 {[%clk 0:02:52]}
11... Be7 {[%clk 0:02:21.5]} 12. Kb1 {[%clk 0:02:45.3]} 12... b5 {[%clk
0:02:09.7]} 13. Bd3 {[%clk 0:02:29.9]} 13... g5 {[%clk 0:01:49.7]} 14. fxg5
{[%clk 0:02:28.6]} 14... Ng4 {[%clk 0:01:50.7]} 15. Bg3 {[%clk 0:02:14.8]} 15...
hxg5 {[%clk 0:01:46.7]} 16. Rhf1 {[%clk 0:02:14.5]} 16... Nge5 {[%clk
0:01:42.1]} 17. Nxe5 {[%clk 0:02:15.1]} 17... Nxe5 {[%clk 0:01:43.4]} 18. Bxe5
{[%clk 0:02:15.2]} 18... dxe5 {[%clk 0:01:45.3]} 19. Qf2 {[%clk 0:02:16.8]}
19... Rh7 {[%clk 0:01:17.8]} 20. Be2 {[%clk 0:02:15.4]} 20... f6 {[%clk
0:01:00.5]} 21. Bg4 {[%clk 0:02:10.5]} 21... b4 {[%clk 0:00:49.8]} 22. Bxe6
{[%clk 0:02:06.3]} 22... bxc3 {[%clk 0:00:32.3]} 23. Bxd7+ {[%clk 0:02:02.1]}
23... Kf8 {[%clk 0:00:33.2]} 24. Bxc8 {[%clk 0:01:54.9]} 24... Qxc8 {[%clk
0:00:35.1]} 25. Qb6 {[%clk 0:01:53.4]} 25... Rf7 {[%clk 0:00:16.1]} 26. Rf3
{[%clk 0:01:38.3]} 26... cxb2 {[%clk 0:00:12.2]} 27. Rfd3 {[%clk 0:01:39]} 27...
Qg4 {[%clk 0:00:10.5]} 28. Qc6 {[%clk 0:01:26]} 28... Kg7 {[%clk 0:00:11.1]} 29.
g3 {[%clk 0:01:26.5]} 29... Qe2 {[%clk 0:00:11.6]} 30. h4 {[%clk 0:01:19.8]}
30... g4 {[%clk 0:00:08.1]} 31. h5 {[%clk 0:01:21]} 31... Qh2 {[%clk 0:00:06.2]}
32. Qe6 {[%clk 0:01:17.6]} 32... Qxh5 {[%clk 0:00:06.4]} 33. Rd7 {[%clk
0:01:18.4]} 33... Kf8 {[%clk 0:00:07]} 34. Ra7 {[%clk 0:01:04.2]} 34... Qg6
{[%clk 0:00:07.4]} 35. a3 {[%clk 0:00:52]} 35... Qxe4 {[%clk 0:00:06.1]} 36.
Rxe7 {[%clk 0:00:52.9]} 36... Rxe7 {[%clk 0:00:06.4]} 37. Rd8+ {[%clk
0:00:53.9]} 37... Kg7 {[%clk 0:00:08.3]} 38. Qxe7+ {[%clk 0:00:53.4]} 38... Kg6
{[%clk 0:00:09.9]} 39. Rg8+ {[%clk 0:00:54.1]} 39... Kf5 {[%clk 0:00:08.4]} 40.
Qd7# {[%clk 0:00:55.3]} 1-0

[Event "*** Titled Tuesday 3|2 Blitz"]
[Site "Chess.com"]
[Date "2016.10.04"]
[Round "1"]
[White "michaelk123"]
[Black "agser"]
[Result "1-0"]
[WhiteElo "2234"]
[BlackElo "2510"]
[TimeControl "180+2"]
[EndTime "17:08:17 PDT"]
[Termination "michaelk123 won by checkmate"]

1. e4 {[%clk 0:03:00.6]} 1... c5 {[%clk 0:03:01]} 2. Nf3 {[%clk 0:03:01.2]} 2...
e6 {[%clk 0:03:02.2]} 3. b3 {[%clk 0:03:01.3]} 3... b6 {[%clk 0:03:02.4]} 4. Bd3
{[%clk 0:03:00.5]} 4... Bb7 {[%clk 0:03:03.5]} 5. O-O {[%clk 0:02:58.3]} 5...
Nc6 {[%clk 0:03:00.5]} 6. Re1 {[%clk 0:02:56.9]} 6... Qc7 {[%clk 0:02:57.8]} 7.
Bb2 {[%clk 0:02:46.4]} 7... Nf6 {[%clk 0:02:48.4]} 8. e5 {[%clk 0:02:46]} 8...
Nd5 {[%clk 0:02:43.2]} 9. Be4 {[%clk 0:02:45.8]} 9... O-O-O {[%clk 0:02:29]} 10.
Na3 {[%clk 0:02:36.4]} 10... a6 {[%clk 0:02:24.6]} 11. d4 {[%clk 0:02:13.5]}
11... cxd4 {[%clk 0:01:48.1]} 12. Nc4 {[%clk 0:02:12.1]} 12... b5 {[%clk
0:01:36.3]} 13. Bxd5 {[%clk 0:01:43.9]} 13... exd5 {[%clk 0:01:36.1]} 14. Nd6+
{[%clk 0:01:44.8]} 14... Bxd6 {[%clk 0:01:37]} 15. exd6 {[%clk 0:01:46]} 15...
Qxd6 {[%clk 0:01:38.7]} 16. Nxd4 {[%clk 0:01:40.9]} 16... Nxd4 {[%clk
0:01:36.2]} 17. Qxd4 {[%clk 0:01:38.1]} 17... Rde8 {[%clk 0:01:35.4]} 18. a4
{[%clk 0:01:28.1]} 18... bxa4 {[%clk 0:01:26.9]} 19. Qxa4 {[%clk 0:00:51.4]}
19... Re4 {[%clk 0:00:59.8]} 20. Bd4 {[%clk 0:00:31.6]} 20... Rhe8 {[%clk
0:00:54.8]} 21. Red1 {[%clk 0:00:30.9]} 21... Qc6 {[%clk 0:00:36.6]} 22. Qa5
{[%clk 0:00:21.7]} 22... Qb5 {[%clk 0:00:33.3]} 23. Qc3+ {[%clk 0:00:21.4]}
23... Kb8 {[%clk 0:00:34.8]} 24. h3 {[%clk 0:00:19.9]} 24... f6 {[%clk
0:00:35.5]} 25. Ra5 {[%clk 0:00:19.9]} 25... Qe2 {[%clk 0:00:34.6]} 26. Rda1
{[%clk 0:00:17.7]} 26... Rc8 {[%clk 0:00:34.5]} 27. Qb4 {[%clk 0:00:15]} 27...
Rxc2 {[%clk 0:00:23.1]} 28. Qd6+ {[%clk 0:00:10.5]} 28... Kc8 {[%clk 0:00:20.8]}
29. Bb6 {[%clk 0:00:07.7]} 29... Rc6 {[%clk 0:00:12.8]} 30. Rc5 {[%clk
0:00:06.4]} 30... Re7 {[%clk 0:00:03.2]} 31. Rxc6+ {[%clk 0:00:03.3]} 31... dxc6
{[%clk 0:00:04.3]} 32. Qd8# {[%clk 0:00:04.5]} 1-0

[Event "*** Titled Tuesday 3|2 Blitz"]
[Site "Chess.com"]
[Date "2016.10.04"]
[Round "1"]
[White "ShimanovAlex"]
[Black "pedromartinez91"]
[Result "0-1"]
[WhiteElo "2590"]
[BlackElo "2349"]
[TimeControl "180+2"]
[EndTime "17:08:29 PDT"]
[Termination "pedromartinez91 won by checkmate"]

1. e4 {[%clk 0:01:47.9]} 1... c5 {[%clk 0:02:58.9]} 2. Nf3 {[%clk 0:01:49.2]}
2... Nc6 {[%clk 0:02:59.6]} 3. Bb5 {[%clk 0:01:50]} 3... g6 {[%clk 0:03:00.4]}
4. c3 {[%clk 0:01:50.5]} 4... Bg7 {[%clk 0:02:58.8]} 5. O-O {[%clk 0:01:51]}
5... Nf6 {[%clk 0:02:58.8]} 6. Re1 {[%clk 0:01:52.2]} 6... O-O {[%clk
0:02:58.9]} 7. d3 {[%clk 0:01:49.3]} 7... Qc7 {[%clk 0:02:52.4]} 8. h3 {[%clk
0:01:48.1]} 8... d6 {[%clk 0:02:52]} 9. Ba4 {[%clk 0:01:47.6]} 9... Bd7 {[%clk
0:02:45.3]} 10. Be3 {[%clk 0:01:41.5]} 10... Rab8 {[%clk 0:02:44.9]} 11. Bc2
{[%clk 0:01:38.8]} 11... Rfc8 {[%clk 0:02:41.8]} 12. Nbd2 {[%clk 0:01:37.1]}
12... b5 {[%clk 0:02:41.1]} 13. Rc1 {[%clk 0:01:37.6]} 13... Qa5 {[%clk
0:02:37.4]} 14. a3 {[%clk 0:01:37.8]} 14... Qd8 {[%clk 0:02:25.4]} 15. d4 {[%clk
0:01:37.5]} 15... cxd4 {[%clk 0:02:16.8]} 16. cxd4 {[%clk 0:01:39.4]} 16... Na5
{[%clk 0:02:14.2]} 17. d5 {[%clk 0:01:36.7]} 17... Rc7 {[%clk 0:02:04.8]} 18.
Bd4 {[%clk 0:01:26.7]} 18... Nc4 {[%clk 0:02:01.3]} 19. Nxc4 {[%clk 0:01:27.2]}
19... Rxc4 {[%clk 0:02:01.5]} 20. Bxa7 {[%clk 0:01:26.8]} 20... Rbc8 {[%clk
0:02:00.9]} 21. Bd4 {[%clk 0:01:26]} 21... Qc7 {[%clk 0:01:42.8]} 22. Bc3 {[%clk
0:01:21.4]} 22... Nh5 {[%clk 0:01:34.3]} 23. e5 {[%clk 0:00:38.6]} 23... Nf4
{[%clk 0:01:25.2]} 24. Bb3 {[%clk 0:00:38.2]} 24... Rc5 {[%clk 0:01:16]} 25. Ra1
{[%clk 0:00:32.2]} 25... Bxh3 {[%clk 0:00:57.2]} 26. exd6 {[%clk 0:00:32.1]}
26... Qxd6 {[%clk 0:00:57.9]} 27. Bxg7 {[%clk 0:00:32.4]} 27... Nxg2 {[%clk
0:00:41.3]} 28. Be5 {[%clk 0:00:31.4]} 28... Qd7 {[%clk 0:00:41.6]} 29. Qd4
{[%clk 0:00:30.9]} 29... Qf5 {[%clk 0:00:28.3]} 30. Nh4 {[%clk 0:00:19.9]} 30...
Nxh4 {[%clk 0:00:28.5]} 31. Qxh4 {[%clk 0:00:20.7]} 31... Bg4 {[%clk 0:00:10.5]}
32. Bg3 {[%clk 0:00:19.5]} 32... Bf3 {[%clk 0:00:11.1]} 33. Bd1 {[%clk 0:00:20]}
33... Rc1 {[%clk 0:00:09.5]} 34. Bxf3 {[%clk 0:00:20.6]} 34... Rxa1 {[%clk
0:00:10.3]} 35. Rc1 {[%clk 0:00:21.5]} 35... Rcxc1+ {[%clk 0:00:09.4]} 36. Kg2
{[%clk 0:00:21.9]} 36... Rg1+ {[%clk 0:00:10.8]} 37. Kh2 {[%clk 0:00:23.3]}
37... Qxf3 {[%clk 0:00:12.2]} 38. Qa4 {[%clk 0:00:11.7]} 38... Rh1# {[%clk
0:00:13.1]} 0-1

[Event "*** Titled Tuesday 3|2 Blitz"]
[Site "Chess.com"]
[Date "2016.10.04"]
[Round "1"]
[White "GianmarcoVaR"]
[Black "wonderfultime"]
[Result "0-1"]
[WhiteElo "2376"]
[BlackElo "2700"]
[TimeControl "180+2"]
[EndTime "17:08:33 PDT"]
[Termination "wonderfultime won by checkmate"]

1. d4 {[%clk 0:02:32.7]} 1... d5 {[%clk 0:03:00.8]} 2. Nf3 {[%clk 0:02:34.2]}
2... Nf6 {[%clk 0:03:01.1]} 3. c4 {[%clk 0:02:35.8]} 3... c6 {[%clk 0:03:02.2]}
4. e3 {[%clk 0:02:37.2]} 4... Bf5 {[%clk 0:03:02.9]} 5. Nc3 {[%clk 0:02:38.6]}
5... e6 {[%clk 0:03:04.3]} 6. Nh4 {[%clk 0:02:39.6]} 6... Be4 {[%clk 0:03:05.8]}
7. f3 {[%clk 0:02:39.8]} 7... Bg6 {[%clk 0:03:06.9]} 8. Qb3 {[%clk 0:02:37.7]}
8... Qc7 {[%clk 0:03:07.9]} 9. Bd2 {[%clk 0:02:33.5]} 9... Be7 {[%clk
0:03:09.2]} 10. g3 {[%clk 0:02:34.1]} 10... O-O {[%clk 0:03:03.4]} 11. Nxg6
{[%clk 0:02:32.3]} 11... hxg6 {[%clk 0:03:04.3]} 12. Be2 {[%clk 0:02:31]} 12...
dxc4 {[%clk 0:02:57.5]} 13. Bxc4 {[%clk 0:02:29]} 13... a6 {[%clk 0:02:58.7]}
14. Rc1 {[%clk 0:02:27]} 14... c5 {[%clk 0:02:48.7]} 15. dxc5 {[%clk 0:02:09.3]}
15... Nbd7 {[%clk 0:02:41.7]} 16. Na4 {[%clk 0:02:03.8]} 16... Nxc5 {[%clk
0:02:12]} 17. Nxc5 {[%clk 0:02:04.2]} 17... Bxc5 {[%clk 0:02:13.9]} 18. Be2
{[%clk 0:01:44.7]} 18... Rac8 {[%clk 0:02:07.7]} 19. Rc2 {[%clk 0:01:36.4]}
19... Rfd8 {[%clk 0:02:04.2]} 20. Qc4 {[%clk 0:01:22.6]} 20... b5 {[%clk
0:01:55.6]} 21. Qb3 {[%clk 0:01:02.7]} 21... Qa7 {[%clk 0:01:54.8]} 22. Kf2
{[%clk 0:00:51.4]} 22... Rd5 {[%clk 0:01:02.3]} 23. Rhc1 {[%clk 0:00:45.3]}
23... Rcd8 {[%clk 0:01:01]} 24. Ba5 {[%clk 0:00:44.3]} 24... R8d7 {[%clk
0:01:00.7]} 25. Qc3 {[%clk 0:00:19.6]} 25... Rf5 {[%clk 0:00:59.6]} 26. Kg2
{[%clk 0:00:14.1]} 26... Bxe3 {[%clk 0:00:56.5]} 27. Rd1 {[%clk 0:00:13.3]}
27... Bd4 {[%clk 0:00:47.6]} 28. Qc8+ {[%clk 0:00:12.4]} 28... Kh7 {[%clk
0:00:49.2]} 29. Rc6 {[%clk 0:00:09]} 29... Re5 {[%clk 0:00:18.2]} 30. Rxa6
{[%clk 0:00:05.3]} 30... Rxe2+ {[%clk 0:00:18.6]} 31. Kh3 {[%clk 0:00:06.1]}
31... Rd5 {[%clk 0:00:11.3]} 32. g4 {[%clk 0:00:03.3]} 32... Qe7 {[%clk
0:00:12.5]} 33. Bc3 {[%clk 0:00:03.9]} 33... Nxg4 {[%clk 0:00:10.9]} 34. fxg4
{[%clk 0:00:04.3]} 34... Rxh2+ {[%clk 0:00:10.2]} 35. Kxh2 {[%clk 0:00:03.9]}
35... Qh4+ {[%clk 0:00:11.5]} 36. Kg2 {[%clk 0:00:05.5]} 36... Qxg4+ {[%clk
0:00:12.6]} 37. Kh2 {[%clk 0:00:05.8]} 37... Rh5# {[%clk 0:00:12.8]} 0-1

[Event "*** Titled Tuesday 3|2 Blitz"]
[Site "Chess.com"]
[Date "2016.10.04"]
[Round "1"]
[White "jlandaw"]
[Black "Tarlev_Konstantin"]
[Result "0-1"]
[WhiteElo "2271"]
[BlackElo "2576"]
[TimeControl "180+2"]
[EndTime "17:08:43 PDT"]
[Termination "Tarlev_Konstantin won by resignation"]

1. e4 {[%clk 0:03:02]} 1... c5 {[%clk 0:03:01.1]} 2. Nc3 {[%clk 0:03:02.7]} 2...
e6 {[%clk 0:03:02.2]} 3. g3 {[%clk 0:03:04.2]} 3... Nc6 {[%clk 0:03:03.5]} 4.
Bg2 {[%clk 0:03:05.2]} 4... g6 {[%clk 0:03:05.2]} 5. d3 {[%clk 0:03:06.5]} 5...
Bg7 {[%clk 0:03:06.9]} 6. Be3 {[%clk 0:03:08]} 6... d6 {[%clk 0:03:08.4]} 7. f4
{[%clk 0:03:09.2]} 7... Nge7 {[%clk 0:03:08.4]} 8. Nf3 {[%clk 0:03:10.7]} 8...
O-O {[%clk 0:03:09.7]} 9. O-O {[%clk 0:03:12.2]} 9... b6 {[%clk 0:03:08.7]} 10.
d4 {[%clk 0:03:13.4]} 10... Ba6 {[%clk 0:03:09.3]} 11. Rf2 {[%clk 0:03:14.5]}
11... d5 {[%clk 0:02:53.1]} 12. dxc5 {[%clk 0:02:36.1]} 12... d4 {[%clk
0:02:50.5]} 13. Rd2 {[%clk 0:02:37.3]} 13... bxc5 {[%clk 0:02:43.1]} 14. Bf2
{[%clk 0:02:34.3]} 14... Qa5 {[%clk 0:02:21.5]} 15. Ne2 {[%clk 0:02:02.9]} 15...
Rfd8 {[%clk 0:02:22.6]} 16. e5 {[%clk 0:01:54.6]} 16... Rab8 {[%clk 0:02:16.8]}
17. c3 {[%clk 0:01:55.4]} 17... d3 {[%clk 0:02:11]} 18. Nc1 {[%clk 0:01:53.5]}
18... c4 {[%clk 0:02:12.4]} 19. Ng5 {[%clk 0:01:32]} 19... Qc7 {[%clk
0:01:37.7]} 20. b3 {[%clk 0:01:09.3]} 20... Nd5 {[%clk 0:01:35.3]} 21. Ne4
{[%clk 0:01:08.5]} 21... Na5 {[%clk 0:01:27.4]} 22. b4 {[%clk 0:00:51.9]} 22...
Nc6 {[%clk 0:01:26.2]} 23. a4 {[%clk 0:00:53.1]} 23... Nxe5 {[%clk 0:01:23.6]}
24. fxe5 {[%clk 0:00:53.4]} 24... Bxe5 {[%clk 0:01:25.3]} 25. Na2 {[%clk
0:00:54.2]} 25... Bc8 {[%clk 0:01:07.3]} 26. Rc1 {[%clk 0:00:54.7]} 26... Bg7
{[%clk 0:01:07.3]} 27. g4 {[%clk 0:00:30]} 27... e5 {[%clk 0:00:46]} 28. Qe1
{[%clk 0:00:27.2]} 28... Bxg4 {[%clk 0:00:42.1]} 29. Bc5 {[%clk 0:00:25.8]}
29... Nf4 {[%clk 0:00:41.9]} 30. Kh1 {[%clk 0:00:23.7]} 30... Nxg2 {[%clk
0:00:38.3]} 31. Kxg2 {[%clk 0:00:25.6]} 31... Bc8 {[%clk 0:00:38.5]} 32. Kg1
{[%clk 0:00:18.8]} 32... Bb7 {[%clk 0:00:39.7]} 33. Ng3 {[%clk 0:00:20]} 33...
Ba8 {[%clk 0:00:37.6]} 34. Qf2 {[%clk 0:00:18.7]} 34... Rd7 {[%clk 0:00:31]} 35.
Rf1 {[%clk 0:00:19.5]} 35... Re8 {[%clk 0:00:25.9]} 36. b5 {[%clk 0:00:20.7]}
36... f5 {[%clk 0:00:22.3]} 37. Re1 {[%clk 0:00:16.8]} 37... e4 {[%clk
0:00:21.3]} 38. Nxf5 {[%clk 0:00:10.5]} 38... gxf5 {[%clk 0:00:22]} 39. Qxf5
{[%clk 0:00:11.3]} 39... Rf7 {[%clk 0:00:22.2]} 40. Qh5 {[%clk 0:00:11.6]} 40...
e3 {[%clk 0:00:23.1]} 41. Bxe3 {[%clk 0:00:11.7]} 41... Qb7 {[%clk 0:00:24.1]}
0-1

[Event "*** Titled Tuesday 3|2 Blitz"]
[Site "Chess.com"]
[Date "2016.10.04"]
[Round "1"]
[White "GasconJR"]
[Black "Paralinch"]
[Result "0-1"]
[WhiteElo "2278"]
[BlackElo "2593"]
[TimeControl "180+2"]
[EndTime "17:08:57 PDT"]
[Termination "Paralinch won on time"]

1. e4 {[%clk 0:03:00.8]} 1... c6 {[%clk 0:03:01.1]} 2. d4 {[%clk 0:03:00.3]}
2... d5 {[%clk 0:03:02.3]} 3. Nc3 {[%clk 0:03:01.8]} 3... dxe4 {[%clk
0:03:03.1]} 4. Nxe4 {[%clk 0:03:03.4]} 4... Bf5 {[%clk 0:03:04.7]} 5. Ng3 {[%clk
0:03:04.2]} 5... Bg6 {[%clk 0:03:06.3]} 6. Bc4 {[%clk 0:03:05.1]} 6... e6 {[%clk
0:03:07.2]} 7. N1e2 {[%clk 0:03:05]} 7... Bd6 {[%clk 0:03:07.5]} 8. O-O {[%clk
0:03:04.9]} 8... Ne7 {[%clk 0:03:07.9]} 9. Nf4 {[%clk 0:02:59.2]} 9... O-O
{[%clk 0:03:07.4]} 10. c3 {[%clk 0:02:55.1]} 10... Nd5 {[%clk 0:03:07]} 11. Nxg6
{[%clk 0:02:54]} 11... hxg6 {[%clk 0:03:07.6]} 12. Qg4 {[%clk 0:02:43.3]} 12...
Nd7 {[%clk 0:03:07.6]} 13. Bg5 {[%clk 0:02:42.4]} 13... Be7 {[%clk 0:03:08.6]}
14. Bxe7 {[%clk 0:02:38.4]} 14... Qxe7 {[%clk 0:03:10.5]} 15. Rae1 {[%clk
0:02:36.6]} 15... Rae8 {[%clk 0:03:01.3]} 16. h4 {[%clk 0:02:32.2]} 16... N7f6
{[%clk 0:03:01.6]} 17. Qf3 {[%clk 0:02:31.7]} 17... Qd8 {[%clk 0:02:54.9]} 18.
Re5 {[%clk 0:02:30.7]} 18... Nd7 {[%clk 0:02:54.7]} 19. Ree1 {[%clk 0:02:30.7]}
19... Qxh4 {[%clk 0:02:53.5]} 20. Ne4 {[%clk 0:02:30.6]} 20... Qe7 {[%clk
0:02:50.5]} 21. g3 {[%clk 0:02:25.8]} 21... g5 {[%clk 0:02:28.9]} 22. Qh5 {[%clk
0:02:15.4]} 22... g6 {[%clk 0:02:23.2]} 23. Qh6 {[%clk 0:02:07]} 23... f6 {[%clk
0:02:15.4]} 24. Qxg6+ {[%clk 0:02:07.6]} 24... Qg7 {[%clk 0:02:17]} 25. Qxg7+
{[%clk 0:02:08.4]} 25... Kxg7 {[%clk 0:02:18.9]} 26. Nd6 {[%clk 0:02:09.6]}
26... Re7 {[%clk 0:02:20.2]} 27. Bxd5 {[%clk 0:02:10.7]} 27... cxd5 {[%clk
0:02:18.3]} 28. Nf5+ {[%clk 0:02:12]} 28... Kf7 {[%clk 0:02:19.8]} 29. Nxe7
{[%clk 0:02:13.1]} 29... Kxe7 {[%clk 0:02:21.7]} 30. Kg2 {[%clk 0:02:11.6]}
30... Kd6 {[%clk 0:02:19.7]} 31. Rh1 {[%clk 0:02:11.4]} 31... Rf7 {[%clk
0:02:21.3]} 32. Rh8 {[%clk 0:02:11]} 32... e5 {[%clk 0:02:15.6]} 33. dxe5+
{[%clk 0:02:11.6]} 33... Nxe5 {[%clk 0:02:16.8]} 34. Rd8+ {[%clk 0:02:07.9]}
34... Kc6 {[%clk 0:02:07.8]} 35. Rd1 {[%clk 0:02:06.5]} 35... Nc4 {[%clk
0:02:08.4]} 36. b3 {[%clk 0:01:58]} 36... Nb6 {[%clk 0:02:09.2]} 37. a4 {[%clk
0:01:55.9]} 37... Kc7 {[%clk 0:02:08.6]} 38. Rh8 {[%clk 0:01:53.2]} 38... a5
{[%clk 0:02:02]} 39. Rdh1 {[%clk 0:01:52.4]} 39... Nd7 {[%clk 0:02:02.3]} 40.
R1h7 {[%clk 0:01:51.1]} 40... Rxh7 {[%clk 0:02:03.2]} 41. Rxh7 {[%clk
0:01:52.2]} 41... Kd6 {[%clk 0:02:01.3]} 42. Kf3 {[%clk 0:01:50.6]} 42... Nc5
{[%clk 0:02:01.9]} 43. Ke3 {[%clk 0:01:43.3]} 43... b6 {[%clk 0:02:00.1]} 44.
Ra7 {[%clk 0:01:24.6]} 44... Nxb3 {[%clk 0:01:58.4]} 45. Rb7 {[%clk 0:01:25.1]}
45... Kc5 {[%clk 0:01:44.3]} 46. Rf7 {[%clk 0:01:23.1]} 46... b5 {[%clk
0:01:45]} 47. axb5 {[%clk 0:01:18.1]} 47... Kxb5 {[%clk 0:01:46.3]} 48. Rxf6
{[%clk 0:01:18.7]} 48... a4 {[%clk 0:01:47.4]} 49. Kd3 {[%clk 0:01:17.1]} 49...
a3 {[%clk 0:01:47.8]} 50. Rf8 {[%clk 0:00:22]} 50... a2 {[%clk 0:01:48.3]} 51.
Rb8+ {[%clk 0:00:02]} 51... Ka4 {[%clk 0:01:47.1]} 52. Rb4+ {[%clk 0:00:02]}
52... Ka3 {[%clk 0:01:44.1]} 53. Rb8 {[%clk 0:00:02.8]} 53... Na5 {[%clk
0:01:36.6]} 54. Rb5 {[%clk 0:00:04.1]} 54... Nc4 {[%clk 0:01:26.2]} 55. Rb8
{[%clk 0:00:04]} 55... Nb2+ {[%clk 0:01:27.1]} 0-1